bitfinex-derivatives/quotes_SOLF0:USTF0_20250625
["timestamp","ask_amount","ask_price","bid_price","bid_amount"]
[1750872424959,6.9287,144.26,144.23,6.9294]
[1750872425453,37.98,144.27,144.21,42.33720598]
[1750872425657,44.78530598,144.3,144.23,4.39720598]
[1750872426057,6.9286,144.26,144.21,42.33720598]
[1750872426662,4.39720598,144.28,144.21,37.94]
[1750872426859,4.39720598,144.26,144.18,42.7781]
[1750872427162,11.32091043,144.35,144.25,4.39681043]
[1750872427364,4.39681043,144.35,144.26,42.7781]
[1750872427659,11.32091043,144.35,144.31,6.9257]
[1750872428362,4.39681043,144.33,144.26,47.17491043]
[1750872428562,4.39681043,144.33,144.26,42.7781]
[1750872429162,6.9252,144.33,144.27,4.39681043]
[1750872429566,37.94,144.34,144.27,4.39681043]
[1750872429766,6.9257,144.32,144.29,6.9266]
[1750872429964,37.94,144.34,144.27,4.39681043]
[1750872430558,6.9258,144.32,144.29,6.9266]
[1750872433569,6.926,144.31,144.28,6.9272]
[1750872435069,6.9265,144.3,144.26,42.33681043]
[1750872435271,6.9265,144.3,144.27,6.9275]
[1750872436560,6.9269,144.29,144.27,6.9275]
[1750872436766,6.9269,144.29,144.26,6.9282]
[1750872437671,6.9274,144.28,144.26,6.9282]
[1750872437876,6.9274,144.28,144.25,146.5286]
[1750872438172,4.39681043,144.31,144.23,4.39681043]
[1750872438173,37.94,144.3,144.23,4.39681043]
[1750872438476,4.39681043,144.29,144.23,6.9295]
[1750872439171,4.39681043,144.27,144.22,6.93]
[1750872439474,4.39681043,144.27,144.18,17.13837676]
[1750872439475,4.39681043,144.27,144.19,42.33681043]
[1750872439873,4.39681043,144.27,144.19,37.94]
[1750872440175,6.9296,144.24,144.21,6.9307]
[1750872441180,5.64620457,144.29,144.19,44.8714]
[1750872441386,4.39681043,144.25,144.17,2.2518]
[1750872441598,4.39681043,144.24,144.17,4.39681043]
[1750872441884,6.9308,144.21,144.18,6.9319]
[1750872442086,4.39681043,144.24,144.16,37.94]
[1750872442389,4.39681043,144.24,144.15,636.42]
[1750872442390,6.9315,144.2,144.15,636.42]
[1750872442576,42.33681043,144.22,144.15,37.94]
[1750872442885,6.9318,144.19,144.16,6.9329]
[1750872443382,4.39681043,144.2,144.12,14.99627676]
[1750872443587,4.39681043,144.18,144.11,42.27681043]
[1750872443780,6.9334,144.16,144.13,6.9342]
[1750872443980,4.39681043,144.18,144.11,37.88]
[1750872444176,37.94,144.22,144.12,4.39681043]
[1750872444376,6.9322,144.18,144.12,4.39681043]
[1750872444577,4.39681043,144.2,144.12,4.39681043]
[1750872444979,6.9321,144.19,144.12,4.39681043]
[1750872445185,4.39681043,144.2,144.12,4.39681043]
[1750872445388,6.9325,144.18,144.11,177.4]
[1750872445582,4.39681043,144.2,144.12,4.39681043]
[1750872445887,4.39681043,144.2,144.13,3.26479594]
[1750872446085,6.9329,144.17,144.14,10.19859594]
[1750872446287,6.9329,144.17,144.15,3.26479594]
[1750872446481,6.9329,144.17,144.16,3.26479594]
[1750872446682,6.9329,144.17,144.16,3.26410095]
[1750872447386,42.27681043,144.18,144.09,9.05291043]
[1750872447688,4.39681043,144.16,144.09,9.05291043]
[1750872448192,6.9344,144.14,144.09,9.05291043]
[1750872448375,6.9344,144.14,144.11,6.9355]
[1750872449185,4.39681043,144.16,144.1,6.9358]
[1750872449590,6.9344,144.14,144.1,6.9358]
[1750872449886,2.4428,144.17,144.09,9.05291043]
[1750872450083,6.9334,144.16,144.09,9.05291043]
[1750872450288,37.88,144.18,144.15,6.9333]
[1750872450491,37.88,144.18,144.09,4.6561]
[1750872450687,37.88,144.18,144.12,4.39681043]
[1750872450990,37.88,144.18,144.09,4.6561]
[1750872451191,6.9341,144.15,144.1,4.39681043]
[1750872451692,6.9347,144.13,144.1,4.39681043]
[1750872451893,6.9347,144.13,144.08,636.42]
[1750872451894,4.39681043,144.17,144.08,640.81681043]
[1750872452189,4.39681043,144.15,144.09,6.9363]
[1750872452390,2.3798,144.16,144.06,2.374]
[1750872452391,4.39681043,144.14,144.06,44.67081043]
[1750872452891,37.9,144.14,144.06,44.67081043]
[1750872453085,37.9,144.14,144.08,4.39681043]
[1750872453486,6.9348,144.13,144.1,6.9358]
[1750872454093,6.9351,144.12,144.09,6.9363]
[1750872454292,4.39681043,144.12,144.02,12.62227676]
[1750872454494,6.9373,144.08,144.05,6.9382]
[1750872455592,4.39681043,144.12,144.04,42.29681043]
[1750872455784,42.29681043,144.14,144.08,4.39681043]
[1750872456101,6.9354,144.12,144.09,6.9363]
[1750872456399,42.29681043,144.14,144.06,4.39681043]
[1750872456585,6.9365,144.1,144.07,6.9372]
[1750872457294,6.9365,144.1,144.04,42.29681043]
[1750872457295,6.9366,144.09,144.06,6.9377]
[1750872457790,6.9366,144.09,144.04,37.9]
[1750872457990,6.9362,144.1,144.04,37.9]
[1750872458187,4.39681043,144.12,144.03,9.19041043]
[1750872458386,4.39681043,144.12,144.04,37.9]
[1750872458593,6.9369,144.09,144.05,6.938]
[1750872458896,4.39681043,144.12,144.04,37.9]
[1750872459297,6.9368,144.09,144.06,6.9379]
[1750872459496,4.39681043,144.12,144.04,37.9]
[1750872459906,6.9368,144.09,144.06,6.9377]
[1750872460196,4.39681043,144.12,144.04,37.9]
[1750872460400,6.937,144.08,144.05,6.9382]
[1750872460898,4.39681043,144.1,144.04,37.9]
[1750872461589,6.9372,144.08,144.05,6.9382]
[1750872461900,4.39681043,144.1,144.04,37.9]
[1750872462205,4.39681043,144.1,144.06,6.9379]
[1750872462398,4.39681043,144.1,144.04,37.9]
[1750872463108,4.39681043,144.1,144.06,6.9379]
[1750872463801,6.9368,144.09,144.06,6.9379]
[1750872464799,6.9371,144.08,144.05,6.9382]
[1750872464999,6.9371,144.08,144.04,37.9]
[1750872465201,4.39681043,144.1,144.04,37.9]
[1750872465506,4.39681043,144.1,144.06,6.9377]
[1750872465711,4.39681043,144.1,144.04,37.9]
[1750872465895,6.9372,144.08,144.05,6.9382]
[1750872466902,6.9372,144.08,144.06,6.9379]
[1750872467502,4.39681043,144.1,144.04,37.9]
[1750872467803,42.31681043,144.1,144.03,4.7936]
[1750872468007,6.9379,144.07,144.04,6.9387]
[1750872468207,4.39681043,144.08,144.04,6.9387]
[1750872468697,6.9378,144.07,144.05,6.9384]
[1750872469314,11.33401043,144.08,144.05,6.9384]
[1750872469705,4.39681043,144.08,144.05,6.9384]
[1750872470014,6.9372,144.08,144.06,6.9379]
[1750872471110,42.31681043,144.1,144.06,6.9379]
[1750872471411,42.31681043,144.1,144.03,9.19041043]
[1750872471412,6.9367,144.09,144.03,9.19041043]
[1750872471710,6.9372,144.08,144.06,6.9377]
[1750872474507,37.92,144.1,144.07,6.9371]
[1750872475026,37.92,144.1,144.05,4.39681043]
[1750872475315,6.9371,144.08,144.06,6.9377]
[1750872477911,6.9375,144.07,144.05,6.9383]
[1750872479216,6.9373,144.08,144.05,6.9383]
[1750872480519,6.9373,144.08,144.06,6.9379]
[1750872481515,37.92,144.1,144.03,9.19041043]
[1750872481918,6.9372,144.08,144.06,6.9377]
[1750872482615,6.9375,144.07,144.05,6.9382]
[1750872482814,37.92,144.1,144.03,9.19041043]
[1750872483712,6.9372,144.08,144.06,6.9377]
[1750872484019,37.92,144.1,144.04,4.39681043]
[1750872485321,6.9372,144.08,144.06,6.9376]
[1750872486026,42.31681043,144.1,144.03,4.7936]
[1750872486221,42.31681043,144.1,144.03,2.3377]
[1750872486617,6.9382,144.06,144.03,2.3377]
[1750872486820,42.31681043,144.1,144.02,6.81651043]
[1750872487015,4.69681043,144.08,144.0,2.4543]
[1750872487321,4.69681043,144.08,143.99,44.52941043]
[1750872487322,4.39681043,144.06,143.99,44.52941043]
[1750872487619,4.39681043,144.02,143.94,42.27681043]
[1750872487822,4.5904,144.05,143.94,42.27681043]
[1750872488014,42.27681043,144.06,143.98,4.39681043]
[1750872488514,6.9392,144.04,144.01,6.9403]
[1750872489218,6.9395,144.03,144.01,6.9403]
[1750872489720,37.88,144.06,143.99,6.941]
[1750872489721,4.39681043,144.05,143.99,6.941]
[1750872490518,37.88,144.06,143.99,4.39681043]
[1750872490722,0.3,144.08,144.01,4.39681043]
[1750872490922,6.9383,144.06,144.03,6.9389]
[1750872491218,0.3,144.08,144.01,4.39681043]
[1750872491409,6.938,144.06,144.01,4.39681043]
[1750872491812,6.938,144.06,144.03,6.939]
[1750872493722,4.52055999,144.08,144.0,6.77651043]
[1750872494217,4.39681043,144.07,143.99,42.632]
[1750872494424,4.39681043,144.05,143.99,42.632]
[1750872494624,42.29681043,144.05,143.99,37.9]
[1750872495320,6.9408,144.0,143.99,37.9]
[1750872495718,6.9408,144.0,143.97,11.33881043]
[1750872496327,6.9408,144.0,143.98,6.9417]
[1750872497631,6.9416,143.99,143.96,37.9]
[1750872497830,6.9416,143.99,143.96,42.29681043]
[1750872498234,6.9416,143.99,143.96,49.23931043]
[1750872498832,6.9416,143.99,143.97,6.9422]
[1750872499037,6.9411,144.0,143.97,6.9422]
[1750872499832,4.55681043,144.03,143.97,6.9422]
[1750872500133,6.9411,144.0,143.97,6.9422]
[1750872500330,4.55681043,144.03,143.96,50.82463353]
[1750872500537,0.16,144.03,144.0,4.39681043]
[1750872500729,0.16,144.03,144.02,4.39681043]
[1750872500932,0.16,144.03,144.0,42.29681043]
[1750872501329,7.0996,144.03,144.0,42.29681043]
[1750872501835,7.0996,144.03,144.0,49.23741043]
[1750872502333,0.16,144.03,143.99,6.9411]
[1750872502535,0.16,144.03,143.97,12.92463353]
[1750872504231,6.9404,144.01,143.97,12.92463353]
[1750872504838,6.9404,144.01,143.98,6.9416]
[1750872505233,6.941,144.0,143.97,12.92463353]
[1750872505537,6.941,144.0,143.98,6.9418]
[1750872505936,6.9406,144.01,143.99,6.9411]
[1750872506240,0.16,144.03,143.97,4.39681043]
[1750872506439,0.16,144.03,143.98,3.20531866]
[1750872506636,6.9401,144.02,144.0,6.9406]
[1750872507038,0.16,144.03,143.99,4.39681043]
[1750872507341,0.16,144.03,144.01,6.9399]
[1750872507641,0.16,144.03,143.99,4.39681043]
[1750872507830,0.16,144.03,144.01,6.9401]
[1750872509542,0.16,144.03,144.02,6.9398]
[1750872511542,0.16,144.03,144.02,10.14175954]
[1750872511745,6.9392,144.04,144.02,10.14175954]
[1750872512043,0.3,144.05,144.03,3.20195954]
[1750872512241,0.3,144.05,143.99,4.39681043]
[1750872512442,0.3,144.05,144.0,3.20161268]
[1750872512642,6.9391,144.04,144.01,10.14141268]
[1750872512844,0.3,144.05,144.02,3.20161268]
[1750872513045,0.3,144.05,144.03,3.20161268]
[1750872513345,6.9394,144.03,144.01,6.9398]
[1750872513547,6.9394,144.03,144.02,3.20149697]
[1750872514248,6.9392,144.04,144.02,3.20149697]
[1750872514446,6.9392,144.04,144.03,3.20149697]
[1750872514646,0.3,144.05,144.0,42.25681043]
[1750872515045,0.16,144.04,144.0,42.25681043]
[1750872517042,0.16,144.04,144.03,6.9393]
[1750872517855,0.3,144.05,144.04,6.9388]
[1750872518052,0.3,144.05,144.04,11.33561043]
[1750872522952,0.3,144.05,144.04,6.9388]
[1750872527756,0.3,144.05,144.04,11.33561043]
[1750872528462,6.9367,144.09,144.06,6.9379]
[1750872528662,37.86,144.1,144.06,6.9379]
[1750872529957,6.9365,144.09,144.06,6.9379]
[1750872530363,0.3,144.09,144.06,6.9379]
[1750872530662,0.3,144.09,144.05,6.9381]
[1750872530859,6.9372,144.08,144.05,6.9381]
[1750872533163,6.9374,144.07,144.05,6.9381]
[1750872535464,0.3,144.09,144.03,6.9392]
[1750872536061,4.39681043,144.08,144.02,6.9395]
[1750872536265,0.3,144.09,144.0,37.86]
[1750872536564,0.3,144.09,144.05,4.39681043]
[1750872536953,7.2368,144.09,144.05,4.39681043]
[1750872537262,0.3,144.09,144.05,4.39681043]
[1750872537659,6.9371,144.08,144.06,6.9376]
[1750872540659,0.3,144.09,144.07,4.39681043]
[1750872541063,0.3,144.09,144.08,6.9369]
[1750872541263,42.15681043,144.16,144.08,37.76]
[1750872541464,42.15681043,144.16,144.09,4.39681043]
[1750872541669,6.9343,144.14,144.11,6.9354]
[1750872542170,6.9343,144.14,144.12,6.935]
[1750872542671,6.9343,144.14,144.09,4.39681043]
[1750872543465,7.1201,144.18,144.11,4.39681043]
[1750872543769,37.76,144.19,144.13,4.39681043]
[1750872544564,6.9318,144.19,144.13,4.39681043]
[1750872546165,6.9322,144.18,144.13,4.39681043]
[1750872546364,4.39681043,144.2,144.13,4.39681043]
[1750872547570,6.9329,144.17,144.14,6.9338]
[1750872547768,6.9329,144.17,144.12,37.76]
[1750872547769,4.39681043,144.18,144.12,37.76]
[1750872548183,6.9338,144.15,144.1,2.363]
[1750872548371,4.39681043,144.16,144.1,37.74]
[1750872548571,4.39681043,144.14,144.1,37.74]
[1750872548772,4.39681043,144.14,144.07,44.49651043]
[1750872548974,6.9351,144.12,144.09,6.9361]
[1750872551078,6.9347,144.13,144.1,6.9359]
[1750872551270,4.39681043,144.14,144.07,44.49651043]
[1750872552175,6.935,144.12,144.09,6.9362]
[1750872553180,6.9347,144.13,144.1,6.9359]
[1750872553481,4.39681043,144.16,144.09,4.39681043]
[1750872553671,6.9338,144.15,144.11,6.9354]
[1750872553872,6.9338,144.15,144.09,4.39681043]
[1750872554085,4.39681043,144.16,144.09,4.39681043]
[1750872554472,6.9273,144.17,144.09,4.39681043]
[1750872554672,11.32411043,144.17,144.09,4.39681043]
[1750872554869,6.9343,144.14,144.11,6.9352]
[1750872555174,11.32411043,144.17,144.09,4.39681043]
[1750872555376,6.9337,144.15,144.12,6.9347]
[1750872555979,37.74,144.18,144.11,42.13681043]
[1750872556274,4.39681043,144.19,144.11,42.13681043]
[1750872556275,42.13681043,144.21,144.13,4.39681043]
[1750872556481,6.9318,144.19,144.16,6.933]
[1750872557079,6.9322,144.18,144.15,6.9334]
[1750872557680,6.9319,144.19,144.15,6.9334]
[1750872558179,6.9319,144.19,144.13,4.39681043]
[1750872558385,42.13681043,144.21,144.16,6.9328]
[1750872558681,42.13681043,144.21,144.13,4.39681043]
[1750872558986,42.13681043,144.21,144.15,6.9334]
[1750872559285,6.9322,144.18,144.15,6.9334]
[1750872562288,6.9322,144.18,144.16,6.933]
[1750872562683,6.9322,144.18,144.13,4.39681043]
[1750872562884,6.9322,144.18,144.15,6.9331]
[1750872563183,6.9327,144.17,144.15,6.9331]
[1750872566087,6.9327,144.17,144.14,6.9338]
[1750872566288,6.9331,144.16,144.14,6.9338]
[1750872566684,4.39681043,144.19,144.14,6.9338]
[1750872566989,6.9328,144.17,144.14,6.9338]
[1750872567492,6.9332,144.16,144.14,6.9338]
[1750872568190,6.9328,144.17,144.14,6.9338]
[1750872570594,6.9328,144.17,144.15,6.9335]
[1750872570991,6.9328,144.17,144.14,6.9338]
[1750872571195,41.99681043,144.17,144.08,2.3743]
[1750872571395,4.39681043,144.15,144.09,37.6]
[1750872571691,6.9348,144.13,144.1,6.9355]
[1750872572711,6.9351,144.12,144.1,6.9355]
[1750872573103,4.39681043,144.15,144.1,6.9355]
[1750872573303,6.9347,144.13,144.1,6.9355]
[1750872573910,6.935,144.12,144.1,6.9355]
[1750872574112,4.39681043,144.15,144.06,37.62]
[1750872574302,4.39681043,144.13,144.05,44.33491043]
[1750872574505,4.39681043,144.11,144.06,6.9376]
[1750872575009,6.9362,144.1,144.05,37.62]
[1750872575214,6.9362,144.1,144.07,6.9371]
[1750872575514,42.01681043,144.13,144.05,37.62]
[1750872575711,42.01681043,144.13,144.08,6.9368]
[1750872575909,6.9358,144.11,144.08,6.9368]
[1750872578313,6.9358,144.11,144.09,6.9362]
[1750872579012,37.62,144.13,144.11,6.9354]
[1750872579405,37.62,144.13,144.08,4.39681043]
[1750872579611,6.9349,144.13,144.1,6.9358]
[1750872580008,4.39681043,144.15,144.1,6.9358]
[1750872580322,4.39681043,144.13,144.09,6.9362]
[1750872581108,4.39681043,144.13,144.08,6.9367]
[1750872581109,6.9358,144.11,144.08,6.9367]
[1750872582221,6.9361,144.1,144.08,6.9367]
[1750872582519,4.39681043,144.11,144.05,37.62]
[1750872582821,6.937,144.08,144.05,37.62]
[1750872583018,6.937,144.08,144.06,6.9377]
[1750872583707,6.9367,144.09,144.07,6.9373]
[1750872584112,6.9367,144.09,144.05,37.62]
[1750872584819,6.72451043,144.11,144.06,6.9377]
[1750872585520,6.72451043,144.11,144.05,44.5581]
[1750872585715,6.72451043,144.11,144.05,6.9381]
[1750872586016,9.12481043,144.11,144.05,6.9381]
[1750872586421,4.39681043,144.09,144.04,6.9387]
[1750872586619,4.39681043,144.09,144.02,40.0478]
[1750872587015,4.39681043,144.09,144.03,6.9391]
[1750872587320,37.62,144.08,144.03,6.9391]
[1750872587510,6.9381,144.06,144.03,6.9391]
[1750872588418,37.62,144.08,144.04,6.9388]
[1750872588922,37.62,144.08,144.05,6.9384]
[1750872588923,6.9375,144.07,144.05,6.9384]
[1750872589114,37.62,144.08,144.02,37.62]
[1750872589618,6.9379,144.06,144.04,6.9386]
[1750872589809,37.62,144.08,144.02,37.62]
[1750872590223,6.9377,144.07,144.02,37.62]
[1750872590422,37.62,144.08,144.02,37.62]
[1750872591122,6.9379,144.06,144.03,6.9393]
[1750872591317,6.9379,144.06,144.01,4.39681043]
[1750872591517,37.62,144.08,144.01,4.39681043]
[1750872592118,6.9376,144.07,144.01,4.39681043]
[1750872592619,6.9376,144.07,144.04,6.9385]
[1750872593023,6.938,144.06,144.04,6.9385]
[1750872595024,6.9385,144.05,144.03,6.9391]
[1750872596426,42.01681043,144.08,143.99,42.01681043]
[1750872597519,4.39681043,144.06,143.99,42.01681043]
[1750872597723,42.01681043,144.08,144.01,4.39681043]
[1750872598115,6.9379,144.06,144.04,6.9386]
[1750872598522,6.9385,144.05,143.99,37.62]
[1750872598722,4.39681043,144.06,143.99,37.62]
[1750872599118,6.9391,144.04,144.01,6.9399]
[1750872599622,6.9393,144.03,144.01,6.9399]
[1750872600220,6.9391,144.04,144.01,6.9399]
[1750872601428,4.39681043,144.06,143.99,37.62]
[1750872601723,37.62,144.08,143.96,44.13481043]
[1750872601724,4.39681043,144.04,143.96,44.13481043]
[1750872601928,4.39681043,144.02,143.96,39.738]
[1750872602129,4.39681043,144.02,143.95,147.53116511]
[1750872602624,6.94,144.02,143.96,4.39681043]
[1750872602924,6.94,144.02,143.96,6.77121043]
[1750872603122,6.9403,144.01,143.96,6.77121043]
[1750872603321,4.39681043,144.02,143.96,2.3744]
[1750872603524,4.39681043,144.02,143.95,147.53116511]
[1750872603826,4.39681043,144.02,143.94,138.96]
[1750872604227,6.9415,143.99,143.96,6.9424]
[1750872604525,6.9415,143.99,143.93,41.89681043]
[1750872604726,4.39681043,144.02,143.98,6.9416]
[1750872604920,4.39681043,144.02,143.95,4.39681043]
[1750872605114,6.9406,144.01,143.98,6.9415]
[1750872605520,4.39681043,144.02,143.98,6.9415]
[1750872605817,6.9404,144.01,143.98,6.9415]
[1750872606414,13.8702,144.12,143.99,4.39681043]
[1750872606617,4.39681043,144.07,143.99,4.39681043]
[1750872607726,6.9385,144.05,144.02,6.9398]
[1750872608427,6.9389,144.04,144.02,6.9398]
[1750872609025,6.9389,144.04,144.01,6.9401]
[1750872609225,4.39681043,144.05,143.98,37.52]
[1750872609924,37.52,144.04,143.98,37.52]
[1750872610227,4.39681043,144.03,143.98,37.52]
[1750872610428,6.94,144.02,143.99,6.941]
[1750872610625,4.39681043,144.03,143.98,37.52]
[1750872610828,4.39681043,144.03,143.95,41.91681043]
[1750872611029,6.9408,144.0,143.97,6.942]
[1750872611530,6.9413,143.99,143.96,6.9424]
[1750872612331,6.9419,143.98,143.95,6.9429]
[1750872612634,37.52,144.0,143.95,6.9429]
[1750872612833,6.9421,143.98,143.95,6.9429]
[1750872614336,4.39681043,143.99,143.94,37.52]
[1750872614526,4.39681043,143.99,143.92,4.7426]
[1750872615820,4.39681043,143.99,143.9,603.79681043]
[1750872615821,6.9439,143.94,143.9,603.79681043]
[1750872616435,4.39681043,143.97,143.91,6.9449]
[1750872616630,4.39681043,143.96,143.89,37.52]
[1750872617032,6.9434,143.95,143.92,6.9443]
[1750872617336,4.39681043,143.96,143.92,6.9443]
[1750872617527,6.9439,143.94,143.91,6.9448]
[1750872617735,6.9439,143.94,143.9,4.39681043]
[1750872618332,6.9439,143.94,143.91,6.945]
[1750872620237,6.9446,143.92,143.89,37.52]
[1750872620427,4.39681043,143.92,143.85,41.91681043]
[1750872620628,4.39681043,143.9,143.84,148.98777027]
[1750872620825,6.9469,143.88,143.85,6.9477]
[1750872622130,6.9471,143.87,143.85,6.9477]
[1750872622335,37.52,143.92,143.82,37.52]
[1750872622336,4.39681043,143.88,143.82,37.52]
[1750872622633,4.39681043,143.89,143.82,37.52]
[1750872622933,4.39681043,143.94,143.85,4.39681043]
[1750872623327,6.9449,143.92,143.89,6.946]
[1750872623731,4.39681043,143.94,143.89,6.946]
[1750872624038,4.39681043,143.9,143.82,4.39681043]
[1750872624234,4.39681043,143.88,143.81,37.54]
[1750872624437,11.34361043,143.88,143.81,37.54]
[1750872624628,4.39681043,143.88,143.81,37.54]
[1750872625136,6.9477,143.86,143.81,37.54]
[1750872625333,6.9477,143.86,143.81,41.93681043]
[1750872625533,6.9477,143.86,143.82,6.9492]
[1750872625928,6.9482,143.85,143.82,6.9492]
[1750872626439,4.39681043,143.88,143.83,6.9489]
[1750872626638,6.9476,143.86,143.83,6.9489]
[1750872627636,6.9473,143.87,143.84,6.9483]
[1750872627939,37.44,143.93,143.85,7.58953649]
[1750872628137,4.39681043,143.92,143.81,37.54]
[1750872628339,4.39681043,143.92,143.84,4.39681043]
[1750872628540,4.39681043,143.92,143.85,40.63281801]
[1750872628743,4.39681043,143.92,143.85,37.44]
[1750872629134,6.9457,143.9,143.87,6.9468]
[1750872629847,6.9462,143.89,143.86,6.9474]
[1750872630840,6.9458,143.9,143.85,37.44]
[1750872631239,4.39681043,143.92,143.85,37.44]
[1750872631444,44.27031043,143.96,143.88,4.39681043]
[1750872631839,51.21331043,143.96,143.92,6.9443]
[1750872632142,41.83681043,143.96,143.92,6.9443]
[1750872632340,6.9434,143.95,143.91,6.9449]
[1750872632543,41.83681043,143.96,143.91,6.9449]
[1750872633343,6.9439,143.94,143.91,6.9449]
[1750872633750,6.9442,143.93,143.91,6.9449]
[1750872636555,6.9439,143.94,143.91,6.9449]
[1750872636752,37.44,143.96,143.9,4.39681043]
[1750872636955,37.44,143.96,143.91,3.18803605]
[1750872637164,6.9434,143.95,143.9,4.39681043]
[1750872637457,4.39681043,143.98,143.9,4.39681043]
[1750872637859,4.39681043,143.98,143.92,6.9442]
[1750872638162,6.9435,143.95,143.9,4.39681043]
[1750872638361,6.9435,143.95,143.92,6.9443]
[1750872639063,6.9429,143.96,143.93,6.9441]
[1750872639264,37.44,143.99,143.92,4.39681043]
[1750872639460,37.44,143.99,143.93,3.19191128]
[1750872639655,6.9424,143.97,143.94,6.9434]
[1750872640162,6.9425,143.97,143.92,4.39681043]
[1750872640865,6.9425,143.97,143.94,6.9434]
[1750872642360,6.9425,143.97,143.92,4.39681043]
[1750872642559,37.44,143.99,143.94,4.39681043]
[1750872642869,4.39681043,144.01,143.96,6.9426]
[1750872643062,6.9418,143.98,143.94,4.39681043]
[1750872643362,6.9418,143.98,143.95,3.19169613]
[1750872643667,6.9418,143.98,143.95,6.9429]
[1750872643858,4.39681043,144.01,143.94,4.39681043]
[1750872644059,4.39681043,144.01,143.97,6.9419]
[1750872644361,6.941,144.0,143.97,6.9419]
[1750872644966,4.39681043,144.01,143.97,6.9419]
[1750872645861,6.9409,144.0,143.97,6.9419]
[1750872647065,6.9413,143.99,143.97,6.9419]
[1750872647459,6.9413,143.99,143.96,6.9425]
[1750872647859,6.9418,143.98,143.94,9.29941043]
[1750872648165,4.39681043,144.0,143.94,4.9026]
[1750872648363,6.9419,143.98,143.94,4.9026]
[1750872649270,6.9419,143.98,143.95,6.943]
[1750872650368,4.39681043,143.98,143.94,6.9434]
[1750872650668,41.81681043,143.98,143.9,37.42]
[1750872650864,4.39681043,143.96,143.9,37.42]
[1750872651057,41.81681043,143.98,143.93,6.9441]
[1750872651461,6.943,143.96,143.93,6.9441]
[1750872652266,6.9433,143.95,143.93,6.9441]
[1750872655573,6.9438,143.94,143.92,6.9443]
[1750872656467,6.9438,143.94,143.91,6.9449]
[1750872656673,6.9441,143.93,143.9,37.42]
[1750872657169,6.9441,143.93,143.9,6.9453]
[1750872657875,6.9447,143.92,143.87,331.68431429]
[1750872658169,4.39681043,143.94,143.87,192.96431429]
[1750872658373,6.9456,143.91,143.88,6.9463]
[1750872658872,6.9443,143.93,143.9,6.9452]
[1750872659271,9.4115,143.96,143.89,4.39681043]
[1750872659474,46.35491043,143.97,143.93,6.9438]
[1750872659975,6.9428,143.96,143.93,6.9438]
[1750872660274,46.35491043,143.97,143.92,6.9444]
[1750872660475,6.943,143.96,143.93,3.20308188]
[1750872660681,6.943,143.96,143.89,4.39681043]
[1750872660977,6.943,143.96,143.93,6.9439]
[1750872661179,44.2423,143.97,143.94,3.20205747]
[1750872661380,44.2423,143.97,143.94,6.9432]
[1750872662077,44.2423,143.97,143.95,6.9431]
[1750872662377,6.9423,143.97,143.95,6.9431]
[1750872662778,6.942,143.98,143.95,6.9431]
[1750872662966,6.942,143.98,143.91,44.15441043]
[1750872663280,6.942,143.98,143.92,3.20069444]
[1750872663580,6.942,143.98,143.95,6.9431]
[1750872664180,6.942,143.98,143.91,44.15441043]
[1750872664181,6.9423,143.97,143.94,6.9434]
[1750872665280,6.9423,143.97,143.95,6.9431]
[1750872665574,4.39681043,143.99,143.91,44.15441043]
[1750872665875,37.32,144.0,143.96,6.9424]
[1750872666084,37.32,144.0,143.93,4.39681043]
[1750872666272,37.32,144.0,143.94,3.20096423]
[1750872666575,37.32,144.0,143.95,10.14396423]
[1750872666783,37.32,144.0,143.93,4.39681043]
[1750872666983,7.1164,144.02,143.95,4.39681043]
[1750872667171,2.4167,144.02,143.96,3.20099079]
[1750872667481,41.71681043,144.03,143.97,3.20099079]
[1750872667782,41.71681043,144.03,143.98,3.20099079]